fUST/lending_fUST_20250904
["ID","MTS","AMOUNT","RATE_DAILY","PERIOD"]
[383440003,1756939845719,-480.0,0.00013972,2]
[383440006,1756939845728,-480.0,0.00013972,2]
[383440009,1756939845738,-480.0,0.00013972,2]
[383440011,1756939845747,-480.0,0.00013972,2]
[383440013,1756939845756,-597.6494497,0.00013972,2]
[383440014,1756939845766,-151.0,0.00013972,2]
[383440016,1756939845778,-480.0,0.00013972,2]
[383440018,1756939845789,-480.0,0.00013972,2]
[383440020,1756939845799,-480.0,0.00013972,2]
[383440022,1756939845808,-480.0,0.00013972,2]
[383440024,1756939845819,-480.0,0.00013972,2]
[383440026,1756939845829,-480.0,0.00013972,2]
[383440028,1756939845838,-480.0,0.00013972,2]
[383440030,1756939845848,-563.95,0.00013972,2]
[383440032,1756939845859,-463.99332782,0.00013972,2]
[383440034,1756939845868,-291.0862188,0.00013972,2]
[383440037,1756939845878,-480.0,0.00013972,2]
[383440039,1756939845888,-480.0,0.00013972,2]
[383440040,1756939845898,-167.17,0.00013972,2]
[383440042,1756939845909,-480.0,0.00013972,2]
[383440045,1756939845921,-264.09612837,0.00013972,2]
[383440046,1756939845931,-154.88,0.00013972,2]
[383440048,1756939845941,-151.0,0.00013972,2]
[383440051,1756939845951,-151.0,0.00013972,2]
[383440053,1756939845962,-480.0,0.00013972,2]
[383440055,1756939845972,-480.0,0.00013972,2]
[383440057,1756939845982,-480.0,0.00013972,2]
[383440058,1756939845993,-480.0,0.00013972,2]
[383440062,1756939846003,-480.0,0.00013972,2]
[383440063,1756939846012,-480.0,0.00013972,2]
[383440065,1756939846022,-480.0,0.00013972,2]
[383440067,1756939846031,-480.0,0.00013972,2]
[383440069,1756939846041,-480.0,0.00013972,2]
[383440072,1756939846051,-566.68,0.00013972,2]
[383440073,1756939846061,-480.0,0.00013972,2]
[383440076,1756939846070,-480.0,0.00013972,2]
[383440077,1756939846080,-480.0,0.00013972,2]
[383440079,1756939846089,-480.0,0.00013972,2]
[383440082,1756939846099,-433.28805066,0.00013972,2]
[383440084,1756939846108,-480.0,0.00013972,2]
[383440085,1756939846118,-480.0,0.00013972,2]
[383440088,1756939846128,-179.03,0.00013972,2]
[383440089,1756939846137,-382.41852063,0.00013972,2]
[383440091,1756939846147,-481.89689575,0.00013972,2]
[383440094,1756939846157,-480.0,0.00013972,2]
[383440095,1756939846167,-480.0,0.00013972,2]
[383440098,1756939846176,-480.0,0.00013972,2]
[383440099,1756939846186,-480.0,0.00013972,2]
[383440101,1756939846196,-480.0,0.00013972,2]
[383440103,1756939846206,-480.0,0.00013972,2]
[383440105,1756939846215,-480.0,0.00013972,2]
[383440107,1756939846225,-520.0,0.00013972,2]
[383440109,1756939846234,-480.0,0.00013972,2]
[383440111,1756939846243,-480.0,0.00013972,2]
[383440113,1756939846253,-1746.0,0.00013972,2]
[383440115,1756939846262,-480.0,0.00013972,2]
[383440117,1756939846271,-485.5,0.00013972,2]
[383440119,1756939846280,-480.0,0.00013972,2]
[383440120,1756939846290,-1712.97,0.00013972,2]
[383440121,1756939846299,-480.0,0.00013972,2]
[383440122,1756939846309,-480.0,0.00013972,2]
[383440123,1756939846319,-480.0,0.00013972,2]
[383440124,1756939846329,-480.0,0.00013972,2]
[383440125,1756939846339,-480.0,0.00013972,2]
[383440126,1756939846348,-480.0,0.00013972,2]
[383440127,1756939846358,-480.0,0.00013972,2]
[383440128,1756939846367,-480.0,0.00013972,2]
[383440129,1756939846377,-480.0,0.00013972,2]
[383440130,1756939846389,-1194.93,0.00013972,2]
[383440131,1756939846400,-480.0,0.00013972,2]
[383440132,1756939846410,-481.75159348,0.00013972,2]
[383440133,1756939846421,-480.0,0.00013972,2]
[383440134,1756939846431,-1190.03,0.00013972,2]
[383440136,1756939846441,-480.0,0.00013972,2]
[383440137,1756939846451,-480.0,0.00013972,2]
[383440139,1756939846460,-480.0,0.00013972,2]
[383440141,1756939846470,-707.43,0.00013972,2]
[383440143,1756939846480,-480.0,0.00013972,2]
[383440145,1756939846490,-480.0,0.00013972,2]
[383440147,1756939846501,-480.0,0.00013972,2]
[383440149,1756939846511,-480.0,0.00013972,2]
[383440151,1756939846521,-480.0,0.00013972,2]
[383440153,1756939846530,-338.03640766,0.00013972,2]
[383440155,1756939846539,-482.73678879,0.00013972,2]
[383440157,1756939846549,-480.0,0.00013972,2]
[383440159,1756939846558,-611.82462032,0.00013972,2]
[383440161,1756939846567,-480.0,0.00013972,2]
[383440163,1756939846576,-480.0,0.00013972,2]
[383440165,1756939846586,-483.65213712,0.00013972,2]
[383440167,1756939846595,-480.0,0.00013972,2]
[383440169,1756939846605,-480.0,0.00013972,2]
[383440171,1756939846615,-480.0,0.00013972,2]
[383440173,1756939846625,-480.0,0.00013972,2]
[383440175,1756939846634,-480.0,0.00013972,2]
[383440177,1756939846643,-497.27,0.00013972,2]
[383440179,1756939846652,-480.0,0.00013972,2]
[383440181,1756939846663,-151.0,0.00013972,2]
[383440183,1756939846672,-151.0,0.00013972,2]
[383440185,1756939846681,-480.0,0.00013972,2]
[383440187,1756939846690,-1250.59,0.00013972,2]
[383440190,1756939846699,-151.0,0.00013972,2]
[383440192,1756939846708,-151.0,0.00013972,2]
[383440196,1756939846717,-480.0,0.00013972,2]
[383440198,1756939846727,-480.0,0.00013972,2]
[383440200,1756939846736,-480.0,0.00013972,2]
[383440201,1756939846745,-480.0,0.00013972,2]
[383440204,1756939846755,-480.0,0.00013972,2]
[383440205,1756939846765,-480.0,0.00013972,2]
[383440207,1756939846777,-481.13981514,0.00013972,2]
[383440209,1756939846786,-480.0,0.00013972,2]
[383440211,1756939846796,-513.04,0.00013972,2]
[383440214,1756939846805,-480.0,0.00013972,2]
[383440215,1756939846815,-480.0,0.00013972,2]
[383440217,1756939846824,-480.0,0.00013972,2]
[383440219,1756939846833,-480.0,0.00013972,2]
[383440221,1756939846843,-480.0,0.00013972,2]
[383440223,1756939846853,-480.0,0.00013972,2]
[383440225,1756939846862,-480.0,0.00013972,2]
[383440227,1756939846872,-576.07,0.00013972,2]
[383440229,1756939846881,-480.0,0.00013972,2]
[383440231,1756939846891,-480.0,0.00013972,2]
[383440233,1756939846900,-480.0,0.00013972,2]
[383440235,1756939846916,-346.34804989,0.00013972,2]
[383440237,1756939846925,-899.18,0.00013972,2]
[383440239,1756939846935,-480.0,0.00013972,2]
[383440241,1756939846945,-480.0,0.00013972,2]
[383440243,1756939846955,-480.0,0.00013972,2]
[383440245,1756939846964,-480.0,0.00013972,2]
[383440247,1756939846973,-480.0,0.00013972,2]
[383440249,1756939846984,-480.0,0.00013972,2]
[383440251,1756939846995,-480.0,0.00013972,2]
[383440253,1756939847004,-480.0,0.00013972,2]
[383440255,1756939847014,-480.0,0.00013972,2]
[383440257,1756939847023,-1026.64,0.00013972,2]
[383440259,1756939847034,-480.0,0.00013972,2]
[383440260,1756939847045,-480.0,0.00013972,2]
[383440263,1756939847055,-875.666566,0.00013972,2]
[383440265,1756939847065,-480.0,0.00013972,2]
[383440267,1756939847075,-875.666566,0.00013972,2]
[383440269,1756939847084,-875.666566,0.00013972,2]
[383440271,1756939847093,-875.666566,0.00013972,2]
[383440273,1756939847103,-480.0,0.00013972,2]
[383440274,1756939847112,-875.666566,0.00013972,2]
[383440276,1756939847122,-875.666566,0.00013972,2]
[383440278,1756939847131,-875.666566,0.00013972,2]
[383440280,1756939847140,-875.666566,0.00013972,2]
[383440282,1756939847149,-480.0,0.00013972,2]
[383440284,1756939847160,-480.0,0.00013972,2]
[383440286,1756939847170,-480.0,0.00013972,2]
[383440288,1756939847180,-234.42315556,0.00013972,2]
[383440290,1756939847190,-480.0,0.00013972,2]
[383440302,1756939847290,-756.63,0.00013972,2]
[383440304,1756939847299,-480.0,0.00013972,2]
[383440306,1756939847309,-2351.07,0.00013972,2]
[383440307,1756939847318,-480.0,0.00013972,2]
[383440309,1756939847328,-302.5322839,0.00013972,2]
[383440311,1756939847338,-480.0,0.00013972,2]
[383440313,1756939847348,-480.0,0.00013972,2]
[383440315,1756939847358,-480.0,0.00013972,2]
[383440317,1756939847367,-480.0,0.00013972,2]
[383440319,1756939847380,-151.0,0.00013972,2]
[383440321,1756939847390,-151.0,0.00013972,2]
[383440323,1756939847399,-1205.54,0.00013972,2]
[383440325,1756939847408,-3145.27,0.00013972,2]
[383440327,1756939847418,-743.13,0.00013972,2]
[383440329,1756939847428,-535.44103704,0.00013972,2]
[383440331,1756939847437,-480.0,0.00013972,2]
[383440333,1756939847447,-480.0,0.00013972,2]
[383440335,1756939847456,-480.0,0.00013972,2]
[383440337,1756939847465,-791.486893,0.00013972,2]
[383440339,1756939847475,-152.990517,0.00013972,2]
[383440341,1756939847484,-791.486893,0.00013972,2]
[383440343,1756939847493,-152.990517,0.00013972,2]
[383440345,1756939847503,-791.486893,0.00013972,2]
[383440347,1756939847513,-152.990517,0.00013972,2]
[383440349,1756939847522,-791.486893,0.00013972,2]
[383440351,1756939847531,-152.990517,0.00013972,2]
[383440353,1756939847541,-480.0,0.00013972,2]
[383440355,1756939847550,-791.486893,0.00013972,2]
[383440357,1756939847559,-791.486893,0.00013972,2]
[383440358,1756939847569,-305.8465282,0.00013972,2]
[383440360,1756939847579,-152.990517,0.00013972,2]
[383440362,1756939847588,-152.990517,0.00013972,2]
[383440364,1756939847598,-791.486893,0.00013972,2]
[383440366,1756939847608,-480.0,0.00013972,2]
[383440368,1756939847617,-791.486893,0.00013972,2]
[383440370,1756939847628,-597.13,0.00013972,2]
[383440372,1756939847638,-152.990517,0.00013972,2]
[383440374,1756939847647,-151.0,0.00013972,2]
[383440376,1756939847656,-152.990517,0.00013972,2]
[383440378,1756939847665,-151.0,0.00013972,2]
[383440380,1756939847675,-151.0,0.00013972,2]
[383440382,1756939847684,-151.0,0.00013972,2]
[383440384,1756939847694,-151.0,0.00013972,2]
[383440386,1756939847704,-359.81091253,0.00013973,2]
[383440388,1756939847714,-500.0,0.00013973,2]
[383440390,1756939847723,-500.0,0.00013973,2]
[383440392,1756939847733,-510.68393738,0.00013973,2]
[383440394,1756939847742,-500.0,0.00013973,2]
[383440396,1756939847751,-500.0,0.00013973,2]
[383440398,1756939847760,-500.0,0.00013973,2]
[383440400,1756939847769,-500.0,0.00013973,2]
[383440402,1756939847779,-500.28018904,0.00013973,2]
[383440404,1756939847788,-500.0,0.00013973,2]
[383440406,1756939847797,-500.0,0.00013973,2]
[383440408,1756939847807,-500.0,0.00013973,2]
[383440410,1756939847816,-500.0,0.00013973,2]
[383440412,1756939847827,-500.0,0.00013973,2]
[383440414,1756939847836,-198.92109114,0.00013973,2]
[383440465,1756939848352,-151.0,0.00013698,2]
[383440467,1756939848362,-151.0,0.00013698,2]
[383440469,1756939848374,-151.0,0.00013698,2]
[383440471,1756939848383,-151.0,0.00013698,2]
[383440473,1756939848392,-151.0,0.00013698,2]
[383440475,1756939848402,-151.0,0.00013698,2]
[383440477,1756939848412,-151.0,0.00013698,2]
[383440479,1756939848421,-151.0,0.00013698,2]
[383440481,1756939848431,-480.0,0.00013698,2]
[383440483,1756939848441,-480.0,0.00013698,2]
[383440484,1756939848451,-151.0,0.00013972,2]
[383440486,1756939848461,-151.0,0.00013972,2]
[383440488,1756939848470,-151.0,0.00013972,2]
[383440490,1756939848479,-151.0,0.00013972,2]
[383440492,1756939848488,-151.0,0.00013972,2]
[383440494,1756939848497,-151.0,0.00013972,2]
[383440496,1756939848507,-151.0,0.00013972,2]
[383440498,1756939848516,-151.0,0.00013972,2]
[383440500,1756939848526,-301.07890886,0.00013973,2]
[383440502,1756939848535,-500.0,0.00013973,2]
[383440504,1756939848545,-500.0,0.00013973,2]
[383440506,1756939848554,-500.0,0.00013973,2]
[383440508,1756939848563,-500.0,0.00013973,2]
[383440510,1756939848573,-500.0,0.00013973,2]
[383440512,1756939848583,-500.0,0.00013973,2]
[383440514,1756939848593,-500.0,0.00013973,2]
[383440516,1756939848602,-500.0,0.00013973,2]
[383440518,1756939848611,-500.0,0.00013973,2]
[383440519,1756939848621,-500.0,0.00013973,2]
[383440521,1756939848630,-500.0,0.00013973,2]
[383440523,1756939848640,-500.0,0.00013973,2]
[383440525,1756939848649,-500.0,0.00013973,2]
[383440527,1756939848660,-500.0,0.00013973,2]
[383440529,1756939848669,-164.89562748,0.00013973,2]
[383440531,1756939848678,-500.0,0.00013973,2]
[383440533,1756939848688,-151.0,0.00013973,2]
[383440535,1756939848700,-151.0,0.00013973,2]
[383440537,1756939848710,-153.683967,0.00013973,2]
[383440539,1756939848720,-151.0,0.00013973,2]
[383440541,1756939848730,-151.0,0.00013973,2]
[383440543,1756939848740,-151.0,0.00013973,2]
[383440545,1756939848750,-255.672105,0.00013973,2]
[383440547,1756939848759,-255.672105,0.00013973,2]
[383440549,1756939848769,-255.672105,0.00013973,2]
[383440551,1756939848778,-255.672105,0.00013973,2]
[383440553,1756939848787,-151.0,0.00013973,2]
[383440555,1756939848797,-151.0,0.00013973,2]
[383440557,1756939848807,-151.0,0.00013973,2]
[383440559,1756939848816,-151.0,0.00013973,2]
[383440561,1756939848825,-151.0,0.00013973,2]
[383440563,1756939848835,-151.0,0.00013973,2]
[383440565,1756939848844,-151.0,0.00013973,2]
[383440567,1756939848854,-151.0,0.00013973,2]
[383440568,1756939848863,-267.433508,0.00013973,2]
[383440570,1756939848872,-197.49965258,0.00013973,2]
[383443327,1756940269362,352.9890885,0.00012748,2]
[383443328,1756940272074,1410.54439764,0.00012748,2]
[383443329,1756940295567,687.64412913,0.00029724,120]
[383443331,1756940465122,5000.0,0.0001525,6]
[383443332,1756940489197,5000.0,0.0001525,6]
[383443333,1756940511907,1486.12549793,0.0001525,6]
[383443379,1756941032463,-1000.0,0.00013327,2]
[383443381,1756941032474,-178.3334455,0.00013466,2]
[383443383,1756941032485,-712.6204482,0.00013466,2]
[383443385,1756941032496,-1000.0,0.00013598,2]
[383443387,1756941032506,-300.0,0.00013696,2]
[383443389,1756941032515,-300.0,0.00013696,2]
[383443391,1756941032524,-1200.0,0.00013696,2]
[383443393,1756941032534,-1972.03202538,0.00013696,2]
[383443395,1756941032544,-480.0,0.00013698,2]
[383443397,1756941032553,-480.0,0.00013698,2]
[383443399,1756941032563,-480.0,0.00013698,2]
[383443401,1756941032572,-408.83,0.00013698,2]
[383443403,1756941032581,-480.0,0.00013698,2]
[383443405,1756941032590,-480.0,0.00013698,2]
[383443407,1756941032600,-480.0,0.00013698,2]
[383443409,1756941032610,-175.65,0.00013698,2]
[383443411,1756941032620,-541.87,0.00013698,2]
[383443413,1756941032629,-480.0,0.00013698,2]
[383443415,1756941032639,-187.0,0.00013698,2]
[383443417,1756941032648,-480.0,0.00013698,2]
[383443419,1756941032658,-480.0,0.00013698,2]
[383443421,1756941032667,-480.0,0.00013698,2]
[383443423,1756941032676,-480.0,0.00013698,2]
[383443425,1756941032686,-480.0,0.00013698,2]
[383443427,1756941032696,-496.65,0.00013698,2]
[383443429,1756941032706,-542.81,0.00013698,2]
[383443431,1756941032715,-480.0,0.00013698,2]
[383443434,1756941032725,-480.0,0.00013698,2]
[383443436,1756941032734,-480.0,0.00013698,2]
[383443438,1756941032743,-480.0,0.00013698,2]
[383443440,1756941032754,-480.0,0.00013698,2]
[383443442,1756941032765,-480.0,0.00013698,2]
[383443444,1756941032774,-480.0,0.00013698,2]
[383443445,1756941032783,-480.0,0.00013698,2]
[383443447,1756941032793,-497.71,0.00013698,2]
[383443449,1756941032803,-364.04431813,0.00013698,2]
[383443455,1756941032847,-115.95568187,0.00013698,2]
[383443457,1756941032858,-480.0,0.00013698,2]
[383443459,1756941032867,-158.87741619,0.00013698,2]
[383443989,1756941038419,-321.12258381,0.00013698,2]
[383443991,1756941038429,-480.0,0.00013698,2]
[383443993,1756941038439,-244.08604172,0.00013698,2]
[383443995,1756941038448,-593.21,0.00013698,2]
[383443997,1756941038458,-480.0,0.00013698,2]
[383443999,1756941038467,-480.0,0.00013698,2]
[383444001,1756941038477,-480.0,0.00013698,2]
[383444003,1756941038487,-480.0,0.00013698,2]
[383444005,1756941038497,-1652.69,0.00013698,2]
[383444007,1756941038506,-480.0,0.00013698,2]
[383444009,1756941038515,-94.53244669,0.00013698,2]
[383444013,1756941038552,-385.46755331,0.00013698,2]
[383444015,1756941038562,-480.0,0.00013698,2]
[383444017,1756941038572,-480.0,0.00013698,2]
[383444020,1756941038582,-881.71,0.00013698,2]
[383444022,1756941038591,-480.0,0.00013698,2]
[383444023,1756941038600,-480.0,0.00013698,2]
[383444026,1756941038610,-572.25,0.00013698,2]
[383444028,1756941038619,-480.0,0.00013698,2]
[383444030,1756941038628,-480.0,0.00013698,2]
[383444032,1756941038638,-1003.462957,0.00013699,2]
[383444033,1756941038647,-909.436081,0.00013699,2]
[383444035,1756941038656,-354.53703664,0.00013846,2]
[383444037,1756941038666,-160.0,0.00013851,2]
[383444039,1756941038675,-217.50314573,0.00013851,2]
[383444041,1756941038684,-260.41666667,0.00013851,2]
[383444043,1756941038695,-232.90165665,0.00013851,2]
[383444045,1756941038706,-160.0,0.00013851,2]
[383444047,1756941038715,-530.32150586,0.00013851,2]
[383444050,1756941038724,-160.0,0.00013851,2]
[383444051,1756941038734,-846.3157213,0.00013851,2]
[383444054,1756941038744,-160.0,0.00013851,2]
[383444056,1756941038753,-160.0,0.00013851,2]
[383444058,1756941038764,-417.15472785,0.00013851,2]
[383444060,1756941038774,-9725.19827039,0.00013852,2]
[383444099,1756941361228,-1000.0,0.00018595,20]
[383444100,1756941361254,-400.0,0.00018788,21]
[383444101,1756941361278,-400.0,0.00018888,26]
[383444102,1756941361310,-3552.6959082,0.0002,20]
[383444103,1756941361341,-1000.0,0.00020455,20]
[383444104,1756941361373,-244.0,0.00020455,20]
[383444115,1756941633642,174.0,0.00019574,120]
[383444116,1756941634867,174.0,0.00020553,120]
[383444117,1756941636102,174.0,0.0002158,120]
[383444118,1756941637334,174.0,0.00022659,120]
[383444119,1756941638589,174.0,0.00023792,120]
[383444120,1756941640007,174.0,0.00024982,120]
[383444121,1756941641354,174.0,0.00026231,120]
[383444122,1756941824759,200.0,0.0002975,60]
[383444123,1756941836898,5000.0,0.0001525,6]
[383444124,1756941856787,200.0,0.0002975,60]
[383444125,1756941859571,5000.0,0.0001525,6]
[383444126,1756941882889,5000.0,0.0001525,6]
[383444127,1756941930724,178.0,0.00022549,120]
[383444136,1756942102942,776.20707213,0.0001525,6]
[383444137,1756942116915,199.4501424,0.0002,120]
[383444141,1756942182064,1000.0,0.00029751,60]
[383444142,1756942186025,1000.0,0.00029751,60]
[383444143,1756942187991,1000.0,0.00029751,60]
[383444144,1756942188975,1000.0,0.00029751,60]
[383444145,1756942189947,1000.0,0.00029751,60]
[383444146,1756942190732,1000.0,0.00029751,60]
[383444147,1756942191406,1000.0,0.00029751,60]
[383444148,1756942199486,1000.0,0.00029751,60]
[383444151,1756942203069,1000.0,0.00029751,60]
[383444152,1756942204212,1000.0,0.00029751,60]
[383444153,1756942205451,1000.0,0.00029751,60]
[383444157,1756942209674,1000.0,0.00029751,60]
[383444158,1756942211066,1000.0,0.00029751,60]
[383444159,1756942216019,566.77,0.00029751,60]
[383444195,1756942232587,-157.14661163,0.00013194,2]
[383444197,1756942232597,-157.14661163,0.00013327,2]
[383444199,1756942232608,-1200.0,0.00013495,2]
[383444201,1756942232617,-1485.70677674,0.00013496,2]
[383444208,1756942232689,-657.37500001,0.00013496,2]
[383444216,1756942235781,642.85338837,0.0001525,6]
[383444259,1756942238731,-13140.27195332,0.00013496,2]
[383444261,1756942238741,-250.0,0.00013517,2]
[383444263,1756942238750,-501.731478,0.00013699,2]
[383444265,1756942238760,-863.964276,0.00013699,2]
[383444267,1756942238770,-6290.71248236,0.00013712,2]
[383444269,1756942238779,-831.0,0.00013732,2]
[383444271,1756942238789,-325.20211687,0.00013752,2]
[383444273,1756942238798,-480.0,0.0001376,2]
[383444275,1756942238808,-480.0,0.0001376,2]
[383444277,1756942238817,-480.0,0.0001376,2]
[383444279,1756942238827,-745.1,0.0001376,2]
[383444281,1756942238836,-480.0,0.0001376,2]
[383444283,1756942238845,-287.14023932,0.00013761,2]
[383444285,1756942238855,-305.8465282,0.00013761,2]
[383444287,1756942238864,-480.0,0.00013761,2]
[383444290,1756942238873,-480.0,0.00013761,2]
[383444292,1756942238883,-480.0,0.00013761,2]
[383444294,1756942238893,-480.0,0.00013761,2]
[383444296,1756942238904,-677.95,0.00013761,2]
[383444298,1756942238914,-480.0,0.00013761,2]
[383444300,1756942238924,-480.0,0.00013761,2]
[383444302,1756942238933,-520.0,0.00013761,2]
[383444304,1756942238943,-1704.3,0.00013761,2]
[383444306,1756942238952,-1168.5,0.00013761,2]
[383444308,1756942238961,-480.0,0.00013761,2]
[383444310,1756942238970,-572.87,0.00013761,2]
[383444312,1756942238979,-480.0,0.00013761,2]
[383444314,1756942238989,-1003.86,0.00013761,2]
[383444316,1756942238998,-480.0,0.00013761,2]
[383444318,1756942239008,-480.0,0.00013761,2]
[383444320,1756942239018,-480.0,0.00013761,2]
[383444322,1756942239028,-480.0,0.00013761,2]
[383444324,1756942239037,-480.0,0.00013761,2]
[383444326,1756942239046,-480.0,0.00013761,2]
[383444328,1756942239056,-2460.9668572,0.00013762,2]
[383444330,1756942239065,-2347.87260389,0.00013763,2]
[383444332,1756942239074,-250.0,0.00013765,2]
[383444334,1756942239085,-250.0,0.00013765,2]
[383444336,1756942239094,-500.0,0.00013765,2]
[383444338,1756942239103,-500.0,0.00013765,2]
[383444340,1756942239113,-500.0,0.00013765,2]
[383444342,1756942239122,-500.0,0.00013765,2]
[383444344,1756942239131,-314.17427107,0.00013765,2]
[383444346,1756942239141,-480.0,0.0001377,2]
[383444348,1756942239150,-1179.79,0.0001377,2]
[383444350,1756942239159,-299.08461919,0.0001377,2]
[383444352,1756942239169,-465.76954309,0.00013771,2]
[383444354,1756942239178,-480.0,0.00013771,2]
[383444356,1756942239187,-480.0,0.00013771,2]
[383444358,1756942239196,-480.0,0.00013771,2]
[383444360,1756942239206,-586.15,0.00013771,2]
[383444362,1756942239215,-480.0,0.00013771,2]
[383444364,1756942239224,-480.0,0.00013771,2]
[383444366,1756942239234,-480.0,0.00013771,2]
[383444368,1756942239243,-480.0,0.00013771,2]
[383444370,1756942239253,-480.0,0.00013771,2]
[383444372,1756942239262,-480.0,0.00013771,2]
[383444374,1756942239271,-480.0,0.00013771,2]
[383444376,1756942239281,-480.0,0.00013771,2]
[383444378,1756942239290,-480.0,0.00013771,2]
[383444380,1756942239299,-480.0,0.00013771,2]
[383444382,1756942239308,-480.0,0.00013771,2]
[383444384,1756942239318,-480.0,0.00013771,2]
[383444386,1756942239329,-154.88,0.00013771,2]
[383444388,1756942239338,-480.0,0.00013771,2]
[383444390,1756942239347,-480.0,0.00013771,2]
[383444392,1756942239357,-480.0,0.00013771,2]
[383444394,1756942239367,-480.0,0.00013771,2]
[383444396,1756942239376,-480.0,0.00013771,2]
[383444398,1756942239385,-480.0,0.00013771,2]
[383444400,1756942239395,-480.0,0.00013771,2]
[383444402,1756942239404,-480.0,0.00013771,2]
[383444404,1756942239413,-480.0,0.00013771,2]
[383444406,1756942239423,-480.0,0.00013771,2]
[383444408,1756942239433,-485.5,0.00013771,2]
[383444410,1756942239442,-480.0,0.00013771,2]
[383444412,1756942239452,-179.03,0.00013771,2]
[383444414,1756942239461,-480.0,0.00013771,2]
[383444416,1756942239471,-480.0,0.00013771,2]
[383444418,1756942239480,-480.0,0.00013771,2]
[383444420,1756942239490,-480.0,0.00013771,2]
[383444422,1756942239501,-611.82462032,0.00013771,2]
[383444424,1756942239511,-483.65213712,0.00013771,2]
[383444426,1756942239520,-480.0,0.00013771,2]
[383444428,1756942239530,-480.0,0.00013771,2]
[383444430,1756942239540,-480.0,0.00013771,2]
[383444432,1756942239549,-480.0,0.00013771,2]
[383444434,1756942239559,-480.0,0.00013771,2]
[383444436,1756942239568,-480.0,0.00013771,2]
[383444438,1756942239578,-480.0,0.00013771,2]
[383444440,1756942239587,-480.0,0.00013771,2]
[383444442,1756942239596,-480.0,0.00013771,2]
[383444444,1756942239606,-480.0,0.00013771,2]
[383444446,1756942239616,-1397.76,0.00013771,2]
[383444448,1756942239625,-482.73678879,0.00013771,2]
[383444450,1756942239634,-480.0,0.00013771,2]
[383444452,1756942239643,-480.0,0.00013771,2]
[383444454,1756942239653,-277.35,0.00013771,2]
[383444456,1756942239662,-480.0,0.00013771,2]
[383444458,1756942239671,-480.0,0.00013771,2]
[383444460,1756942239680,-480.0,0.00013771,2]
[383444462,1756942239690,-513.04,0.00013771,2]
[383444464,1756942239699,-480.0,0.00013771,2]
[383444466,1756942239709,-480.0,0.00013771,2]
[383444468,1756942239718,-234.42315556,0.00013771,2]
[383444470,1756942239727,-2319.24,0.00013771,2]
[383444473,1756942239736,-480.0,0.00013771,2]
[383444474,1756942239746,-732.16,0.00013771,2]
[383444476,1756942239756,-480.0,0.00013771,2]
[383444478,1756942239765,-514.46648,0.00013771,2]
[383444480,1756942239774,-3093.89,0.00013771,2]
[383444483,1756942239784,-514.46648,0.00013771,2]
[383444484,1756942239794,-514.46648,0.00013771,2]
[383444487,1756942239805,-151.0,0.00013771,2]
[383444489,1756942239814,-480.0,0.00013771,2]